[Event "Titled Tuesday Blitz April 11 Early 2023"]
[White "Cervantes Landeiro, Thalia"]
[Black "Khubukshanov, Erdem"]
[WhiteFideId "3520498"]
[BlackFideId "54114527"]
[WhiteElo "2172"]
[BlackElo "2420"]
[Result "0-1"]
[Round "04"]
[TimeControl "180+2"]
[Date "2023.04.11"]
[WhiteClock "0:00:02"]
[BlackClock "0:00:37"]

1. d4 {[%clk 0:03:00]}  g6 {[%clk 0:02:57]} 2. c4 {[%clk 0:03:01]}  Bg7 {[%clk 0:02:58]} 3. Nc3 {[%clk 0:03:01]}  d6 {[%clk 0:02:58]} 4. e4 {[%clk 0:03:01]}  Nf6 {[%clk 0:02:58]} 5. f4 {[%clk 0:03:01]}  O-O {[%clk 0:02:58]} 6. Nf3 {[%clk 0:03:02]}  e5 {[%clk 0:02:58]} 7. fxe5 {[%clk 0:03:02]}  dxe5 {[%clk 0:02:58]} 8. d5 {[%clk 0:03:02]}  c6 {[%clk 0:02:56]} 9. Bd3 {[%clk 0:03:02]}  b5 {[%clk 0:02:53]} 10. O-O {[%clk 0:02:54]}  bxc4 {[%clk 0:02:52]} 11. Bxc4 {[%clk 0:02:53]}  cxd5 {[%clk 0:02:52]} 12. exd5 {[%clk 0:02:36]}  e4 {[%clk 0:02:48]} 13. Nd4 {[%clk 0:02:31]}  Qb6 {[%clk 0:02:44]} 14. Kh1 {[%clk 0:02:24]}  Ng4 {[%clk 0:02:36]} 15. Nce2 {[%clk 0:02:12]}  Nd7 {[%clk 0:02:23]} 16. h3 {[%clk 0:02:07]}  Nge5 {[%clk 0:02:22]} 17. Bb3 {[%clk 0:02:03]}  Nc5 {[%clk 0:02:15]} 18. Be3 {[%clk 0:01:33]}  Ba6 {[%clk 0:02:06]} 19. Qd2 {[%clk 0:01:18]}  Rad8 {[%clk 0:01:54]} 20. Rfc1 {[%clk 0:01:13]}  Ned3 {[%clk 0:01:51]} 21. Nc6 {[%clk 0:00:57]}  Rd7 {[%clk 0:01:47]} 22. Nc3 {[%clk 0:00:43]}  Nxc1 {[%clk 0:01:14]} 23. Qxc1 {[%clk 0:00:40]}  Nd3 {[%clk 0:01:09]} 24. Bxb6 {[%clk 0:00:23]}  Nxc1 {[%clk 0:01:09]} 25. Bxa7 {[%clk 0:00:22]}  Nd3 {[%clk 0:01:05]} 26. Bd4 {[%clk 0:00:12]}  Re8 {[%clk 0:00:54]} 27. Rb1 {[%clk 0:00:11]}  e3 {[%clk 0:00:53]} 28. Ne2 {[%clk 0:00:09]}  Nf2+ {[%clk 0:00:52]} 29. Kg1 {[%clk 0:00:08]}  Bxe2 {[%clk 0:00:53]} 30. Re1 {[%clk 0:00:05]}  Bb5 {[%clk 0:00:53]} 31. Bxg7 {[%clk 0:00:04]}  Kxg7 {[%clk 0:00:53]} 32. Nd4 {[%clk 0:00:05]}  Nd3 {[%clk 0:00:51]} 33. Re2 {[%clk 0:00:05]}  Nf4 {[%clk 0:00:46]} 34. Re1 {[%clk 0:00:05]}  Ba6 {[%clk 0:00:37]} 35. Ba4 {[%clk 0:00:05]}  Rxd5 {[%clk 0:00:38]} 36. Bxe8 {[%clk 0:00:03]}  Rxd4 {[%clk 0:00:38]} 37. Rxe3 {[%clk 0:00:02]}  Rd1+ {[%clk 0:00:38]} 38. Kh2 {[%clk 0:00:03]}  Rd2 {[%clk 0:00:39]} 39. Bc6 {[%clk 0:00:02]}  Rxb2 {[%clk 0:00:39]} 40. a4 {[%clk 0:00:02]}  Bb7 {[%clk 0:00:36]} 41. Bxb7 {[%clk 0:00:02]}  Rxb7 {[%clk 0:00:37]} 42. Re4 {[%clk 0:00:02]}  Nd5 {[%clk 0:00:37]} 43. Rd4 {[%clk 0:00:02]}  Ne7 {[%clk 0:00:36]} 44. a5 {[%clk 0:00:02]}  Ra7 {[%clk 0:00:36]} 45. Ra4 {[%clk 0:00:02]}  Ra6 {[%clk 0:00:35]} 46. h4 {[%clk 0:00:01]}  h5 {[%clk 0:00:35]} 47. Kh3 {[%clk 0:00:01]}  Nc6 {[%clk 0:00:35]} 48. Rc4 {[%clk 0:00:01]}  Nxa5 {[%clk 0:00:36]} 49. Ra4 {[%clk 0:00:01]}  Ra7 {[%clk 0:00:36]} 50. g3 {[%clk 0:00:01]}  Nc6 {[%clk 0:00:36]} 51. Rc4 {[%clk 0:00:02]}  Ne5 {[%clk 0:00:37]} 52. Rc5 {[%clk 0:00:02]}  Kf6 {[%clk 0:00:37]} 0-1


[Site "https://www.chess.com"]

[Event "Titled Tuesday Blitz April 11 Early 2023"]
[White "Estrada Nieto, Julian"]
[Black "Harsh Suresh"]
[WhiteFideId "5101018"]
[BlackFideId "45018464"]
[WhiteElo "2161"]
[BlackElo "2227"]
[Result "0-1"]
[Round "04"]
[TimeControl "180+2"]
[Date "2023.04.11"]
[WhiteClock "0:01:36"]
[BlackClock "0:02:23"]

1. e4 {[%clk 0:03:00]}  c5 {[%clk 0:02:58]} 2. Nf3 {[%clk 0:03:00]}  g6 {[%clk 0:02:57]} 3. c3 {[%clk 0:02:59]}  Bg7 {[%clk 0:02:57]} 4. d4 {[%clk 0:02:59]}  cxd4 {[%clk 0:02:58]} 5. cxd4 {[%clk 0:03:00]}  d5 {[%clk 0:02:59]} 6. e5 {[%clk 0:03:00]}  Bg4 {[%clk 0:02:59]} 7. Bb5+ {[%clk 0:03:00]}  Nd7 {[%clk 0:02:59]} 8. O-O {[%clk 0:02:59]}  e6 {[%clk 0:02:57]} 9. Nbd2 {[%clk 0:02:58]}  Ne7 {[%clk 0:02:56]} 10. h3 {[%clk 0:02:58]}  Bxf3 {[%clk 0:02:56]} 11. Nxf3 {[%clk 0:02:58]}  a6 {[%clk 0:02:57]} 12. Bd3 {[%clk 0:02:53]}  Nc6 {[%clk 0:02:56]} 13. Bg5 {[%clk 0:02:51]}  Qb6 {[%clk 0:02:56]} 14. Qa4 {[%clk 0:02:25]}  O-O {[%clk 0:02:50]} 15. Rac1 {[%clk 0:02:24]}  Rfc8 {[%clk 0:02:50]} 16. Rc2 {[%clk 0:02:20]}  Qb4 {[%clk 0:02:46]} 17. Qa3 {[%clk 0:02:09]}  Bf8 {[%clk 0:02:32]} 18. Rb1 {[%clk 0:01:51]}  Nxd4 {[%clk 0:02:24]} 19. Nxd4 {[%clk 0:01:48]}  Qxd4 {[%clk 0:02:23]} 20. Qb3 {[%clk 0:01:36]}  Nc5 {[%clk 0:02:23]} 0-1


[Site "https://www.chess.com"]

[Event "Titled Tuesday Blitz April 11 Early 2023"]
[White "Mikhailovsky, Vladimir"]
[Black "Sargissyan, Sargis"]
[WhiteFideId "34105414"]
[BlackFideId "13303210"]
[WhiteElo "2275"]
[BlackElo "2109"]
[Result "1-0"]
[Round "04"]
[TimeControl "180+2"]
[Date "2023.04.11"]
[WhiteClock "0:00:07"]
[BlackClock "0:00:25"]

1. e4 {[%clk 0:03:00]}  e5 {[%clk 0:02:58]} 2. Nf3 {[%clk 0:03:00]}  Nc6 {[%clk 0:02:59]} 3. Nc3 {[%clk 0:03:01]}  Nf6 {[%clk 0:02:59]} 4. d4 {[%clk 0:03:01]}  exd4 {[%clk 0:02:59]} 5. Nxd4 {[%clk 0:03:02]}  Bb4 {[%clk 0:02:59]} 6. Nxc6 {[%clk 0:03:03]}  bxc6 {[%clk 0:03:00]} 7. Bd3 {[%clk 0:03:04]}  d5 {[%clk 0:03:00]} 8. exd5 {[%clk 0:03:05]}  cxd5 {[%clk 0:03:01]} 9. O-O {[%clk 0:03:05]}  O-O {[%clk 0:03:01]} 10. h3 {[%clk 0:03:06]}  c6 {[%clk 0:03:00]} 11. Qf3 {[%clk 0:03:07]}  Rb8 {[%clk 0:02:50]} 12. Bf4 {[%clk 0:03:07]}  Bd6 {[%clk 0:02:49]} 13. b3 {[%clk 0:03:08]}  Qc7 {[%clk 0:02:46]} 14. Ne2 {[%clk 0:03:08]}  Re8 {[%clk 0:02:31]} 15. Rad1 {[%clk 0:03:09]}  a5 {[%clk 0:02:21]} 16. c4 {[%clk 0:03:09]}  a4 {[%clk 0:02:19]} 17. cxd5 {[%clk 0:03:06]}  cxd5 {[%clk 0:02:19]} 18. bxa4 {[%clk 0:02:39]}  Bd7 {[%clk 0:01:53]} 19. Rc1 {[%clk 0:02:37]}  Qb6 {[%clk 0:01:44]} 20. a5 {[%clk 0:01:40]}  Qb4 {[%clk 0:01:36]} 21. a6 {[%clk 0:01:31]}  Bxf4 {[%clk 0:01:30]} 22. Nxf4 {[%clk 0:01:22]}  Qa5 {[%clk 0:01:25]} 23. a4 {[%clk 0:00:52]}  Rb3 {[%clk 0:01:17]} 24. Bxh7+ {[%clk 0:00:50]}  Kxh7 {[%clk 0:01:13]} 25. Qxb3 {[%clk 0:00:51]}  Bxa4 {[%clk 0:00:47]} 26. Qd3+ {[%clk 0:00:42]}  Kg8 {[%clk 0:00:45]} 27. Ra1 {[%clk 0:00:43]}  Re4 {[%clk 0:00:44]} 28. Nxd5 {[%clk 0:00:18]}  Nxd5 {[%clk 0:00:42]} 29. Qxe4 {[%clk 0:00:18]}  Nc3 {[%clk 0:00:34]} 30. Qb7 {[%clk 0:00:09]}  Nb5 {[%clk 0:00:25]} 31. Rfb1 {[%clk 0:00:07]} 1-0


[Site "https://www.chess.com"]

[Event "Titled Tuesday Blitz April 11 Early 2023"]
[White "Mazarini41"]
[Black "Samunenkov, Ihor"]
[BlackFideId "14187086"]
[WhiteElo "2423"]
[BlackElo "2457"]
[Result "0-1"]
[Round "04"]
[TimeControl "180+2"]
[Date "2023.04.11"]
[WhiteClock "0:00:10"]
[BlackClock "0:00:28"]

1. d4 {[%clk 0:02:58]}  d5 {[%clk 0:02:58]} 2. c4 {[%clk 0:02:58]}  e6 {[%clk 0:02:59]} 3. Nf3 {[%clk 0:02:58]}  c6 {[%clk 0:02:59]} 4. g3 {[%clk 0:02:56]}  Nf6 {[%clk 0:02:58]} 5. Bg2 {[%clk 0:02:56]}  dxc4 {[%clk 0:02:58]} 6. O-O {[%clk 0:02:55]}  b5 {[%clk 0:02:58]} 7. a4 {[%clk 0:02:54]}  Bb7 {[%clk 0:02:57]} 8. Ne5 {[%clk 0:02:51]}  a6 {[%clk 0:02:57]} 9. b3 {[%clk 0:02:48]}  cxb3 {[%clk 0:02:57]} 10. Qxb3 {[%clk 0:02:49]}  Qxd4 {[%clk 0:02:57]} 11. Bb2 {[%clk 0:02:48]}  Qb4 {[%clk 0:02:57]} 12. Qc2 {[%clk 0:02:45]}  Qc5 {[%clk 0:02:57]} 13. Qb3 {[%clk 0:02:43]}  Qb4 {[%clk 0:02:46]} 14. Qc2 {[%clk 0:02:43]}  Nd5 {[%clk 0:02:22]} 15. e4 {[%clk 0:02:22]}  Nb6 {[%clk 0:02:11]} 16. a5 {[%clk 0:01:35]}  Na4 {[%clk 0:01:53]} 17. Ba3 {[%clk 0:01:27]}  Qd4 {[%clk 0:01:51]} 18. Bxf8 {[%clk 0:01:12]}  Rxf8 {[%clk 0:01:40]} 19. Rxa4 {[%clk 0:01:10]}  Qxa4 {[%clk 0:01:08]} 20. Qc5 {[%clk 0:01:01]}  Qxa5 {[%clk 0:00:54]} 21. Rd1 {[%clk 0:00:37]}  Qc7 {[%clk 0:00:47]} 22. Na3 {[%clk 0:00:25]}  f6 {[%clk 0:00:40]} 23. Nac4 {[%clk 0:00:24]}  bxc4 {[%clk 0:00:33]} 24. Nxc4 {[%clk 0:00:23]}  Kf7 {[%clk 0:00:33]} 25. e5 {[%clk 0:00:18]}  Nd7 {[%clk 0:00:29]} 26. Qd4 {[%clk 0:00:10]}  Nxe5 {[%clk 0:00:28]} 0-1


[Site "https://www.chess.com"]

[Event "Titled Tuesday Blitz April 11 Early 2023"]
[White "Karttunen, Mika"]
[Black "Zeman, Matyas"]
[WhiteFideId "502081"]
[BlackFideId "364398"]
[WhiteElo "2396"]
[BlackElo "2254"]
[Result "0-1"]
[Round "04"]
[TimeControl "180+2"]
[Date "2023.04.11"]
[WhiteClock "0:00:15"]
[BlackClock "0:00:05"]

1. e4 {[%clk 0:03:00]}  c5 {[%clk 0:03:00]} 2. Nf3 {[%clk 0:03:00]}  Nc6 {[%clk 0:03:00]} 3. d4 {[%clk 0:03:00]}  cxd4 {[%clk 0:03:00]} 4. Nxd4 {[%clk 0:03:01]}  e5 {[%clk 0:03:00]} 5. Nb5 {[%clk 0:03:01]}  d6 {[%clk 0:03:00]} 6. N1c3 {[%clk 0:03:00]}  a6 {[%clk 0:03:00]} 7. Na3 {[%clk 0:03:00]}  Be6 {[%clk 0:03:00]} 8. Nc4 {[%clk 0:02:58]}  b5 {[%clk 0:02:59]} 9. Ne3 {[%clk 0:02:58]}  Nf6 {[%clk 0:02:59]} 10. Ncd5 {[%clk 0:02:49]}  Ne7 {[%clk 0:02:45]} 11. c4 {[%clk 0:02:40]}  Nfxd5 {[%clk 0:02:23]} 12. exd5 {[%clk 0:02:35]}  Bd7 {[%clk 0:02:23]} 13. Be2 {[%clk 0:02:25]}  g6 {[%clk 0:02:20]} 14. O-O {[%clk 0:02:14]}  Bg7 {[%clk 0:02:21]} 15. c5 {[%clk 0:02:14]}  dxc5 {[%clk 0:02:20]} 16. d6 {[%clk 0:02:14]}  Nf5 {[%clk 0:02:12]} 17. Bf3 {[%clk 0:02:08]}  Nd4 {[%clk 0:02:04]} 18. Bxa8 {[%clk 0:02:02]}  Qxa8 {[%clk 0:02:05]} 19. f4 {[%clk 0:01:48]}  O-O {[%clk 0:01:56]} 20. Ng4 {[%clk 0:01:43]}  Bxg4 {[%clk 0:01:41]} 21. Qxg4 {[%clk 0:01:42]}  f5 {[%clk 0:01:42]} 22. Qd1 {[%clk 0:01:36]}  e4 {[%clk 0:01:41]} 23. Be3 {[%clk 0:01:31]}  Qd5 {[%clk 0:00:46]} 24. Rc1 {[%clk 0:01:25]}  Qxd6 {[%clk 0:00:42]} 25. Qe1 {[%clk 0:01:19]}  b4 {[%clk 0:00:37]} 26. Qf2 {[%clk 0:01:15]}  Rd8 {[%clk 0:00:32]} 27. Kh1 {[%clk 0:01:14]}  Ne6 {[%clk 0:00:16]} 28. Bxc5 {[%clk 0:01:02]}  Nxc5 {[%clk 0:00:17]} 29. Qxc5 {[%clk 0:00:54]}  Qxc5 {[%clk 0:00:16]} 30. Rxc5 {[%clk 0:00:55]}  Bxb2 {[%clk 0:00:17]} 31. Rc2 {[%clk 0:00:39]}  Bc3 {[%clk 0:00:15]} 32. Kg1 {[%clk 0:00:34]}  Kf7 {[%clk 0:00:12]} 33. Kf2 {[%clk 0:00:35]}  Ke6 {[%clk 0:00:12]} 34. Ke2 {[%clk 0:00:35]}  a5 {[%clk 0:00:11]} 35. Rd1 {[%clk 0:00:24]}  Rxd1 {[%clk 0:00:11]} 36. Kxd1 {[%clk 0:00:25]}  Kd5 {[%clk 0:00:11]} 37. h3 {[%clk 0:00:24]}  Kc4 {[%clk 0:00:10]} 38. g4 {[%clk 0:00:24]}  a4 {[%clk 0:00:06]} 39. gxf5 {[%clk 0:00:24]}  gxf5 {[%clk 0:00:06]} 40. Rg2 {[%clk 0:00:24]}  b3 {[%clk 0:00:05]} 41. axb3+ {[%clk 0:00:24]}  Kxb3 {[%clk 0:00:06]} 42. Kc1 {[%clk 0:00:17]}  a3 {[%clk 0:00:06]} 43. Kb1 {[%clk 0:00:17]}  e3 {[%clk 0:00:05]} 44. Re2 {[%clk 0:00:15]}  Bd2 {[%clk 0:00:05]} 45. Ka1 {[%clk 0:00:15]}  a2 {[%clk 0:00:05]} 0-1


[Site "https://www.chess.com"]

[Event "Titled Tuesday Blitz April 11 Early 2023"]
[White "Pakleza, Zbigniew"]
[Black "Szyszylo, Rafal"]
[WhiteFideId "1119290"]
[BlackFideId "1109626"]
[WhiteElo "2410"]
[BlackElo "1951"]
[Result "1-0"]
[Round "04"]
[TimeControl "180+2"]
[Date "2023.04.11"]
[WhiteClock "0:02:11"]
[BlackClock "0:00:08"]

1. d4 {[%clk 0:03:00]}  g6 {[%clk 0:02:53]} 2. Nf3 {[%clk 0:03:01]}  d6 {[%clk 0:02:54]} 3. Bf4 {[%clk 0:03:00]}  Nd7 {[%clk 0:02:55]} 4. e3 {[%clk 0:03:00]}  Bg7 {[%clk 0:02:55]} 5. h3 {[%clk 0:03:00]}  e5 {[%clk 0:02:53]} 6. Bh2 {[%clk 0:03:00]}  Nh6 {[%clk 0:02:53]} 7. Be2 {[%clk 0:03:00]}  O-O {[%clk 0:02:53]} 8. O-O {[%clk 0:03:01]}  f6 {[%clk 0:02:35]} 9. c4 {[%clk 0:03:00]}  Nf7 {[%clk 0:02:31]} 10. Nc3 {[%clk 0:03:00]}  c6 {[%clk 0:02:14]} 11. Rc1 {[%clk 0:02:59]}  Qe7 {[%clk 0:01:58]} 12. b4 {[%clk 0:02:58]}  e4 {[%clk 0:01:47]} 13. Nd2 {[%clk 0:02:58]}  f5 {[%clk 0:01:47]} 14. b5 {[%clk 0:02:50]}  Nf6 {[%clk 0:01:19]} 15. bxc6 {[%clk 0:02:43]}  bxc6 {[%clk 0:01:18]} 16. Rb1 {[%clk 0:02:44]}  Be6 {[%clk 0:01:04]} 17. Qa4 {[%clk 0:02:40]}  Rfc8 {[%clk 0:00:55]} 18. Rb3 {[%clk 0:02:33]}  Rab8 {[%clk 0:00:29]} 19. Rfb1 {[%clk 0:02:30]}  Rxb3 {[%clk 0:00:28]} 20. Rxb3 {[%clk 0:02:31]}  Bf8 {[%clk 0:00:24]} 21. Qa6 {[%clk 0:02:28]}  Rc7 {[%clk 0:00:23]} 22. Rb8 {[%clk 0:02:26]}  Kg7 {[%clk 0:00:23]} 23. c5 {[%clk 0:02:26]}  Qd7 {[%clk 0:00:18]} 24. Nc4 {[%clk 0:02:18]}  Be7 {[%clk 0:00:09]} 25. cxd6 {[%clk 0:02:12]}  Nxd6 {[%clk 0:00:08]} 26. Ne5 {[%clk 0:02:11]} 1-0


[Site "https://www.chess.com"]

[Event "Titled Tuesday Blitz April 11 Early 2023"]
[White "Manukyan, Sargis A."]
[Black "Gatterer, Florian"]
[WhiteFideId "13303970"]
[BlackFideId "811688"]
[WhiteElo "2187"]
[BlackElo "2221"]
[Result "1/2-1/2"]
[Round "04"]
[TimeControl "180+2"]
[Date "2023.04.11"]
[WhiteClock "0:00:33"]
[BlackClock "0:00:19"]

1. d4 {[%clk 0:03:00]}  d5 {[%clk 0:02:59]} 2. c4 {[%clk 0:03:01]}  c6 {[%clk 0:03:00]} 3. Nc3 {[%clk 0:03:01]}  Nf6 {[%clk 0:03:00]} 4. e3 {[%clk 0:03:02]}  Bf5 {[%clk 0:02:59]} 5. cxd5 {[%clk 0:03:01]}  cxd5 {[%clk 0:02:59]} 6. Qb3 {[%clk 0:03:02]}  Nc6 {[%clk 0:02:59]} 7. Qxb7 {[%clk 0:03:01]}  Bd7 {[%clk 0:02:59]} 8. Qb3 {[%clk 0:03:01]}  Rb8 {[%clk 0:02:59]} 9. Qd1 {[%clk 0:03:02]}  e5 {[%clk 0:03:00]} 10. dxe5 {[%clk 0:02:59]}  Nxe5 {[%clk 0:03:00]} 11. Be2 {[%clk 0:03:00]}  Bd6 {[%clk 0:02:58]} 12. Nf3 {[%clk 0:03:01]}  Nxf3+ {[%clk 0:02:59]} 13. Bxf3 {[%clk 0:03:02]}  Qc7 {[%clk 0:02:59]} 14. h3 {[%clk 0:02:55]}  O-O {[%clk 0:02:58]} 15. O-O {[%clk 0:02:55]}  Rfd8 {[%clk 0:02:55]} 16. Nxd5 {[%clk 0:02:32]}  Nxd5 {[%clk 0:02:52]} 17. Qxd5 {[%clk 0:02:33]}  Be6 {[%clk 0:02:37]} 18. Qe4 {[%clk 0:02:25]}  Be5 {[%clk 0:02:28]} 19. a4 {[%clk 0:02:14]}  Bd5 {[%clk 0:02:18]} 20. Qg4 {[%clk 0:02:04]}  Be6 {[%clk 0:02:03]} 21. Qe4 {[%clk 0:01:42]}  Bd5 {[%clk 0:02:01]} 22. Qxd5 {[%clk 0:01:41]}  Rxd5 {[%clk 0:02:00]} 23. Bxd5 {[%clk 0:01:42]}  g6 {[%clk 0:01:42]} 24. e4 {[%clk 0:01:41]}  Kg7 {[%clk 0:01:39]} 25. Be3 {[%clk 0:01:38]}  Rxb2 {[%clk 0:01:10]} 26. Rac1 {[%clk 0:01:35]}  Qa5 {[%clk 0:01:07]} 27. Rc5 {[%clk 0:01:14]}  Qxa4 {[%clk 0:00:57]} 28. Bc6 {[%clk 0:01:14]}  Qa6 {[%clk 0:00:43]} 29. Rxe5 {[%clk 0:01:14]}  Qxc6 {[%clk 0:00:43]} 30. Bd4 {[%clk 0:01:14]}  f6 {[%clk 0:00:37]} 31. Re7+ {[%clk 0:00:58]}  Kf8 {[%clk 0:00:37]} 32. Rxa7 {[%clk 0:00:57]}  Rb4 {[%clk 0:00:27]} 33. Rd1 {[%clk 0:00:46]}  Rxd4 {[%clk 0:00:23]} 34. Rxd4 {[%clk 0:00:44]}  Qc1+ {[%clk 0:00:22]} 35. Kh2 {[%clk 0:00:41]}  Qf4+ {[%clk 0:00:22]} 36. Kh1 {[%clk 0:00:38]}  Qc1+ {[%clk 0:00:20]} 37. Kh2 {[%clk 0:00:33]}  Qf4+ {[%clk 0:00:20]} 38. Kg1 {[%clk 0:00:33]}  Qc1+ {[%clk 0:00:19]} 39. Kh2 {[%clk 0:00:33]} 1/2-1/2


[Site "https://www.chess.com"]

[Event "Titled Tuesday Blitz April 11 Early 2023"]
[White "Itgelt, Khuyagtsogt"]
[Black "Yeritsyan, Hayk"]
[WhiteFideId "4902912"]
[BlackFideId "13307320"]
[WhiteElo "2227"]
[BlackElo "2420"]
[Result "1-0"]
[Round "04"]
[TimeControl "180+2"]
[Date "2023.04.11"]
[WhiteClock "0:01:10"]
[BlackClock "0:00:40"]

1. Nf3 {[%clk 0:03:00]}  Nf6 {[%clk 0:02:58]} 2. c4 {[%clk 0:03:00]}  e6 {[%clk 0:02:56]} 3. d4 {[%clk 0:02:59]}  b6 {[%clk 0:02:53]} 4. a3 {[%clk 0:02:58]}  Bb7 {[%clk 0:02:45]} 5. Nc3 {[%clk 0:02:58]}  Be7 {[%clk 0:02:42]} 6. Qc2 {[%clk 0:02:57]}  c5 {[%clk 0:02:40]} 7. dxc5 {[%clk 0:02:56]}  bxc5 {[%clk 0:02:36]} 8. Bf4 {[%clk 0:02:54]}  Nc6 {[%clk 0:02:24]} 9. Rd1 {[%clk 0:02:54]}  O-O {[%clk 0:02:19]} 10. e4 {[%clk 0:02:54]}  Qb6 {[%clk 0:02:02]} 11. e5 {[%clk 0:02:52]}  Nh5 {[%clk 0:01:56]} 12. Be3 {[%clk 0:02:52]}  f5 {[%clk 0:01:48]} 13. Rxd7 {[%clk 0:02:41]}  f4 {[%clk 0:01:39]} 14. Na4 {[%clk 0:02:35]}  Qa5+ {[%clk 0:01:22]} 15. Bd2 {[%clk 0:02:34]}  Qa6 {[%clk 0:01:22]} 16. Bd3 {[%clk 0:02:30]}  Bc8 {[%clk 0:01:08]} 17. Bxh7+ {[%clk 0:02:01]}  Kh8 {[%clk 0:01:04]} 18. Qg6 {[%clk 0:02:01]}  Rf5 {[%clk 0:00:58]} 19. g4 {[%clk 0:01:21]}  Bxd7 {[%clk 0:00:51]} 20. gxf5 {[%clk 0:01:12]}  Be8 {[%clk 0:00:50]} 21. Qxe6 {[%clk 0:01:10]}  Qxa4 {[%clk 0:00:40]} 22. Qg8# {[%clk 0:01:10]} 1-0


[Site "https://www.chess.com"]

[Event "Titled Tuesday Blitz April 11 Early 2023"]
[White "Munkhgal, Gombosuren"]
[Black "Kujawski, Adam"]
[WhiteFideId "4901266"]
[BlackFideId "1100920"]
[WhiteElo "2528"]
[BlackElo "2054"]
[Result "0-1"]
[Round "04"]
[TimeControl "180+2"]
[Date "2023.04.11"]
[WhiteClock "0:00:19"]
[BlackClock "0:00:12"]

1. d4 {[%clk 0:03:00]}  Nf6 {[%clk 0:02:24]} 2. Bf4 {[%clk 0:03:00]}  c5 {[%clk 0:02:23]} 3. e3 {[%clk 0:02:59]}  d5 {[%clk 0:02:23]} 4. Nd2 {[%clk 0:02:56]}  Nc6 {[%clk 0:02:23]} 5. c3 {[%clk 0:02:57]}  Qb6 {[%clk 0:02:23]} 6. Qb3 {[%clk 0:02:56]}  c4 {[%clk 0:02:23]} 7. Qc2 {[%clk 0:02:57]}  Bg4 {[%clk 0:02:23]} 8. h3 {[%clk 0:02:56]}  Bh5 {[%clk 0:02:23]} 9. Ngf3 {[%clk 0:02:57]}  Bg6 {[%clk 0:02:23]} 10. Qc1 {[%clk 0:02:58]}  e6 {[%clk 0:02:20]} 11. Nh4 {[%clk 0:02:58]}  Rc8 {[%clk 0:02:06]} 12. Nxg6 {[%clk 0:02:58]}  hxg6 {[%clk 0:02:06]} 13. Be2 {[%clk 0:02:59]}  Qd8 {[%clk 0:02:00]} 14. a4 {[%clk 0:02:55]}  Bd6 {[%clk 0:01:51]} 15. Bxd6 {[%clk 0:02:55]}  Qxd6 {[%clk 0:01:51]} 16. f4 {[%clk 0:02:55]}  a6 {[%clk 0:01:48]} 17. O-O {[%clk 0:02:55]}  O-O {[%clk 0:01:46]} 18. Nf3 {[%clk 0:02:48]}  b5 {[%clk 0:01:46]} 19. axb5 {[%clk 0:02:47]}  axb5 {[%clk 0:01:46]} 20. Ne5 {[%clk 0:02:48]}  Ra8 {[%clk 0:01:45]} 21. Bf3 {[%clk 0:02:46]}  Ne4 {[%clk 0:01:41]} 22. Bxe4 {[%clk 0:02:45]}  dxe4 {[%clk 0:01:40]} 23. Qc2 {[%clk 0:02:46]}  Qd5 {[%clk 0:01:27]} 24. Qf2 {[%clk 0:02:45]}  Rfb8 {[%clk 0:01:15]} 25. Qh4 {[%clk 0:02:33]}  b4 {[%clk 0:01:12]} 26. Nxc6 {[%clk 0:02:30]}  Qxc6 {[%clk 0:01:12]} 27. Qe7 {[%clk 0:02:29]}  b3 {[%clk 0:00:56]} 28. Rxa8 {[%clk 0:02:27]}  Rxa8 {[%clk 0:00:56]} 29. g4 {[%clk 0:02:22]}  Ra2 {[%clk 0:00:36]} 30. Rf2 {[%clk 0:02:22]}  Qa4 {[%clk 0:00:36]} 31. Kg2 {[%clk 0:02:21]}  Rxb2 {[%clk 0:00:24]} 32. Rxb2 {[%clk 0:02:20]}  Qa1 {[%clk 0:00:25]} 33. Rf2 {[%clk 0:02:15]}  b2 {[%clk 0:00:20]} 34. f5 {[%clk 0:01:50]}  b1=Q {[%clk 0:00:16]} 35. Qd8+ {[%clk 0:01:48]}  Kh7 {[%clk 0:00:16]} 36. Qh4+ {[%clk 0:01:40]}  Kg8 {[%clk 0:00:16]} 37. Qd8+ {[%clk 0:01:25]}  Kh7 {[%clk 0:00:16]} 38. fxg6+ {[%clk 0:01:10]}  fxg6 {[%clk 0:00:15]} 39. Qh4+ {[%clk 0:00:54]}  Kg8 {[%clk 0:00:15]} 40. Qd8+ {[%clk 0:00:45]}  Kh7 {[%clk 0:00:15]} 41. Qh4+ {[%clk 0:00:41]}  Kg8 {[%clk 0:00:15]} 42. Kg3 {[%clk 0:00:26]}  g5 {[%clk 0:00:15]} 43. Qxg5 {[%clk 0:00:24]}  Qg1+ {[%clk 0:00:15]} 44. Rg2 {[%clk 0:00:19]}  Qae1+ {[%clk 0:00:14]} 45. Kf4 {[%clk 0:00:19]}  Qef1+ {[%clk 0:00:12]} 46. Ke5 {[%clk 0:00:19]}  Qf6+ {[%clk 0:00:12]} 47. Qxf6 {[%clk 0:00:19]}  gxf6+ {[%clk 0:00:12]} 0-1


[Site "https://www.chess.com"]

[Event "Titled Tuesday Blitz April 11 Early 2023"]
[White "Domingo Nunez, Ruben"]
[Black "Okike, David"]
[WhiteFideId "22245570"]
[BlackFideId "8500134"]
[WhiteElo "2404"]
[BlackElo "2232"]
[Result "1-0"]
[Round "04"]
[TimeControl "180+2"]
[Date "2023.04.11"]
[WhiteClock "0:01:19"]
[BlackClock "0:01:46"]

1. c4 {[%clk 0:02:59]}  e5 {[%clk 0:02:58]} 2. b3 {[%clk 0:02:59]}  d6 {[%clk 0:02:53]} 3. Bb2 {[%clk 0:03:00]}  Nc6 {[%clk 0:02:54]} 4. Nf3 {[%clk 0:03:00]}  Nf6 {[%clk 0:02:50]} 5. d4 {[%clk 0:03:00]}  e4 {[%clk 0:02:48]} 6. Nfd2 {[%clk 0:03:01]}  Bf5 {[%clk 0:02:47]} 7. Nc3 {[%clk 0:03:00]}  Bg6 {[%clk 0:02:44]} 8. e3 {[%clk 0:02:56]}  Qd7 {[%clk 0:02:41]} 9. a3 {[%clk 0:02:54]}  Be7 {[%clk 0:02:37]} 10. Qc2 {[%clk 0:02:54]}  Qf5 {[%clk 0:02:37]} 11. h3 {[%clk 0:02:53]}  h5 {[%clk 0:02:36]} 12. Be2 {[%clk 0:02:50]}  h4 {[%clk 0:02:34]} 13. Nb5 {[%clk 0:02:37]}  O-O-O {[%clk 0:02:30]} 14. d5 {[%clk 0:02:37]}  Ne5 {[%clk 0:02:30]} 15. Nxa7+ {[%clk 0:02:35]}  Kb8 {[%clk 0:02:29]} 16. Nb5 {[%clk 0:02:35]}  Nd3+ {[%clk 0:02:29]} 17. Bxd3 {[%clk 0:02:35]}  exd3 {[%clk 0:02:29]} 18. Qc3 {[%clk 0:02:36]}  Ne4 {[%clk 0:02:27]} 19. Nxe4 {[%clk 0:02:34]}  Qxe4 {[%clk 0:02:26]} 20. Qa5 {[%clk 0:02:27]}  d2+ {[%clk 0:02:18]} 21. Qxd2 {[%clk 0:01:48]}  c6 {[%clk 0:02:10]} 22. f3 {[%clk 0:01:37]}  Qf5 {[%clk 0:02:05]} 23. Nd4 {[%clk 0:01:24]}  Qd7 {[%clk 0:02:00]} 24. dxc6 {[%clk 0:01:19]}  bxc6 {[%clk 0:01:58]} 25. Qb4+ {[%clk 0:01:19]}  Kc8 {[%clk 0:01:58]} 26. Qb6 {[%clk 0:01:17]}  Qc7 {[%clk 0:01:50]} 27. Qxc6 {[%clk 0:01:18]}  Bf6 {[%clk 0:01:47]} 28. Qxc7+ {[%clk 0:01:16]}  Kxc7 {[%clk 0:01:47]} 29. Nb5+ {[%clk 0:01:17]}  Kc6 {[%clk 0:01:47]} 30. Bxf6 {[%clk 0:01:18]}  gxf6 {[%clk 0:01:47]} 31. e4 {[%clk 0:01:18]}  f5 {[%clk 0:01:46]} 32. exf5 {[%clk 0:01:19]}  Bxf5 {[%clk 0:01:46]} 33. Nd4+ {[%clk 0:01:19]} 1-0


[Site "https://www.chess.com"]